[Event "Titled Tuesday Blitz November 29 Late 2022"]
[White "Melian, Juan Sebastian"]
[Black "Ankerst, Mihael"]
[WhiteFideId "3706575"]
[BlackFideId "14602369"]
[WhiteElo "2044"]
[BlackElo "2321"]
[Result "1-0"]
[Round "07"]
[TimeControl "180+1"]
[Date "2022.11.30"]
[WhiteClock "0:00:16"]
[BlackClock "0:00:18"]

1. c4 {[%clk 0:03:00]}  Nf6 {[%clk 0:02:46]} 2. Nc3 {[%clk 0:02:59]}  g6 {[%clk 0:02:45]} 3. d4 {[%clk 0:02:59]}  Bg7 {[%clk 0:02:45]} 4. e4 {[%clk 0:02:57]}  d6 {[%clk 0:02:46]} 5. f3 {[%clk 0:02:57]}  O-O {[%clk 0:02:47]} 6. Be3 {[%clk 0:02:58]}  c5 {[%clk 0:02:47]} 7. Nge2 {[%clk 0:02:59]}  Nc6 {[%clk 0:02:47]} 8. Qd2 {[%clk 0:02:59]}  Qa5 {[%clk 0:02:47]} 9. Rd1 {[%clk 0:02:50]}  e6 {[%clk 0:02:46]} 10. Nb5 {[%clk 0:02:42]}  Qxa2 {[%clk 0:02:29]} 11. Nec3 {[%clk 0:02:15]}  Qa5 {[%clk 0:02:23]} 12. dxc5 {[%clk 0:02:15]}  dxc5 {[%clk 0:02:21]} 13. Bxc5 {[%clk 0:02:16]}  Rd8 {[%clk 0:02:18]} 14. Qxd8+ {[%clk 0:01:32]}  Nxd8 {[%clk 0:02:14]} 15. b4 {[%clk 0:01:31]}  Nd7 {[%clk 0:01:22]} 16. bxa5 {[%clk 0:01:29]}  a6 {[%clk 0:01:17]} 17. Nc7 {[%clk 0:00:53]}  Bxc3+ {[%clk 0:01:16]} 18. Ke2 {[%clk 0:00:53]}  Rb8 {[%clk 0:01:16]} 19. Ba7 {[%clk 0:00:53]}  Nc6 {[%clk 0:01:16]} 20. Bxb8 {[%clk 0:00:52]}  Ndxb8 {[%clk 0:01:08]} 21. Ne8 {[%clk 0:00:42]}  Be5 {[%clk 0:00:48]} 22. Nd6 {[%clk 0:00:38]}  Bxd6 {[%clk 0:00:46]} 23. Rxd6 {[%clk 0:00:38]}  Kf8 {[%clk 0:00:46]} 24. Ke3 {[%clk 0:00:33]}  Ke7 {[%clk 0:00:46]} 25. Rd2 {[%clk 0:00:32]}  Nxa5 {[%clk 0:00:46]} 26. Be2 {[%clk 0:00:33]}  Nb3 {[%clk 0:00:45]} 27. Rb2 {[%clk 0:00:33]}  Nc5 {[%clk 0:00:44]} 28. Rhb1 {[%clk 0:00:33]}  Nc6 {[%clk 0:00:44]} 29. Rd2 {[%clk 0:00:22]}  g5 {[%clk 0:00:44]} 30. g3 {[%clk 0:00:19]}  h6 {[%clk 0:00:44]} 31. f4 {[%clk 0:00:19]}  Bd7 {[%clk 0:00:36]} 32. Rdb2 {[%clk 0:00:17]}  Bc8 {[%clk 0:00:36]} 33. Bf3 {[%clk 0:00:18]}  Na4 {[%clk 0:00:35]} 34. Rc2 {[%clk 0:00:17]}  Nc5 {[%clk 0:00:35]} 35. e5 {[%clk 0:00:18]}  Na5 {[%clk 0:00:31]} 36. Kd4 {[%clk 0:00:14]}  Nab3+ {[%clk 0:00:31]} 37. Kc3 {[%clk 0:00:15]}  Na5 {[%clk 0:00:25]} 38. Rb4 {[%clk 0:00:15]}  Bd7 {[%clk 0:00:21]} 39. Rcb2 {[%clk 0:00:14]}  Bc6 {[%clk 0:00:20]} 40. Bxc6 {[%clk 0:00:13]}  Nxc6 {[%clk 0:00:20]} 41. Rxb7+ {[%clk 0:00:13]}  Nxb7 {[%clk 0:00:20]} 42. Rxb7+ {[%clk 0:00:13]}  Kf8 {[%clk 0:00:21]} 43. Rb6 {[%clk 0:00:13]}  Ne7 {[%clk 0:00:20]} 44. Rxa6 {[%clk 0:00:12]}  gxf4 {[%clk 0:00:21]} 45. gxf4 {[%clk 0:00:13]}  Ng6 {[%clk 0:00:22]} 46. c5 {[%clk 0:00:13]}  Ke8 {[%clk 0:00:18]} 47. c6 {[%clk 0:00:11]}  Kd8 {[%clk 0:00:18]} 48. Kd4 {[%clk 0:00:11]}  Nxf4 {[%clk 0:00:16]} 49. Kc5 {[%clk 0:00:12]}  Nd5 {[%clk 0:00:17]} 50. Kd6 {[%clk 0:00:11]}  Nc7 {[%clk 0:00:15]} 51. Rb6 {[%clk 0:00:09]}  Ne8+ {[%clk 0:00:14]} 52. Kc5 {[%clk 0:00:10]}  Kc8 {[%clk 0:00:13]} 53. Rb7 {[%clk 0:00:09]}  Nc7 {[%clk 0:00:14]} 54. Kd6 {[%clk 0:00:10]}  Ne8+ {[%clk 0:00:09]} 55. Ke7 {[%clk 0:00:10]}  Nc7 {[%clk 0:00:10]} 56. Kxf7 {[%clk 0:00:11]}  Nd5 {[%clk 0:00:10]} 57. Kxe6 {[%clk 0:00:10]}  Nf4+ {[%clk 0:00:10]} 58. Kf7 {[%clk 0:00:10]}  Nd3 {[%clk 0:00:08]} 59. e6 {[%clk 0:00:11]}  Ne5+ {[%clk 0:00:09]} 60. Kf8 {[%clk 0:00:10]}  Nxc6 {[%clk 0:00:10]} 61. e7 {[%clk 0:00:09]}  Nxe7 {[%clk 0:00:10]} 62. Rxe7 {[%clk 0:00:09]}  Kd8 {[%clk 0:00:11]} 63. Rh7 {[%clk 0:00:10]}  Kc8 {[%clk 0:00:11]} 64. Rxh6 {[%clk 0:00:10]}  Kd8 {[%clk 0:00:12]} 65. Rh7 {[%clk 0:00:11]}  Kc8 {[%clk 0:00:13]} 66. Re7 {[%clk 0:00:12]}  Kd8 {[%clk 0:00:14]} 67. Kf7 {[%clk 0:00:12]}  Kc8 {[%clk 0:00:15]} 68. Ke6 {[%clk 0:00:13]}  Kd8 {[%clk 0:00:16]} 69. Kd6 {[%clk 0:00:14]}  Kc8 {[%clk 0:00:16]} 70. Kc6 {[%clk 0:00:14]}  Kb8 {[%clk 0:00:17]} 71. Rd7 {[%clk 0:00:13]}  Kc8 {[%clk 0:00:18]} 72. Rd5 {[%clk 0:00:14]}  Kb8 {[%clk 0:00:18]} 73. Kb6 {[%clk 0:00:14]}  Kc8 {[%clk 0:00:18]} 74. Rd4 {[%clk 0:00:15]}  Kb8 {[%clk 0:00:18]} 75. Rd8# {[%clk 0:00:16]} 1-0


[Site "https://www.chess.com"]

[Event "Titled Tuesday Blitz November 29 Late 2022"]
[White "Miller, Luke C"]
[Black "Janaszak, Dawid"]
[WhiteFideId "2096935"]
[BlackFideId "1119206"]
[WhiteElo "2408"]
[BlackElo "2226"]
[Result "1-0"]
[Round "07"]
[TimeControl "180+1"]
[Date "2022.11.30"]
[WhiteClock "0:00:03"]
[BlackClock "0:00:43"]

1. e4 {[%clk 0:03:00]}  c5 {[%clk 0:02:56]} 2. Nf3 {[%clk 0:03:00]}  e6 {[%clk 0:02:54]} 3. d4 {[%clk 0:02:59]}  cxd4 {[%clk 0:02:55]} 4. Nxd4 {[%clk 0:02:59]}  a6 {[%clk 0:02:56]} 5. Bd3 {[%clk 0:02:55]}  g6 {[%clk 0:02:54]} 6. f4 {[%clk 0:02:46]}  Bg7 {[%clk 0:02:52]} 7. Nb3 {[%clk 0:02:43]}  d5 {[%clk 0:02:48]} 8. exd5 {[%clk 0:02:29]}  Qxd5 {[%clk 0:02:38]} 9. O-O {[%clk 0:02:24]}  Nf6 {[%clk 0:02:37]} 10. Nc3 {[%clk 0:02:19]}  Qc6 {[%clk 0:02:30]} 11. Be3 {[%clk 0:02:07]}  O-O {[%clk 0:02:28]} 12. Qe2 {[%clk 0:01:59]}  b6 {[%clk 0:02:23]} 13. Rad1 {[%clk 0:01:44]}  Bb7 {[%clk 0:02:22]} 14. a4 {[%clk 0:01:38]}  Nbd7 {[%clk 0:02:19]} 15. Bd4 {[%clk 0:01:34]}  Rac8 {[%clk 0:02:07]} 16. Bxa6 {[%clk 0:01:24]}  Bxa6 {[%clk 0:01:54]} 17. Qxa6 {[%clk 0:01:25]}  Ra8 {[%clk 0:01:32]} 18. Qe2 {[%clk 0:01:07]}  Nc5 {[%clk 0:01:31]} 19. Nxc5 {[%clk 0:01:01]}  bxc5 {[%clk 0:01:32]} 20. Be5 {[%clk 0:01:01]}  Rfe8 {[%clk 0:01:18]} 21. b3 {[%clk 0:00:57]}  h5 {[%clk 0:01:17]} 22. Nb5 {[%clk 0:00:57]}  Red8 {[%clk 0:01:04]} 23. c4 {[%clk 0:00:50]}  Ne8 {[%clk 0:00:58]} 24. Rxd8 {[%clk 0:00:37]}  Rxd8 {[%clk 0:00:57]} 25. Rd1 {[%clk 0:00:27]}  Rxd1+ {[%clk 0:00:56]} 26. Qxd1 {[%clk 0:00:28]}  Bxe5 {[%clk 0:00:57]} 27. fxe5 {[%clk 0:00:27]}  Qe4 {[%clk 0:00:58]} 28. h3 {[%clk 0:00:13]}  Qxe5 {[%clk 0:00:55]} 29. a5 {[%clk 0:00:11]}  Nf6 {[%clk 0:00:52]} 30. a6 {[%clk 0:00:09]}  Qe3+ {[%clk 0:00:52]} 31. Kh1 {[%clk 0:00:09]}  Ne4 {[%clk 0:00:52]} 32. Qf3 {[%clk 0:00:06]}  Qe1+ {[%clk 0:00:46]} 33. Kh2 {[%clk 0:00:05]}  Nf2 {[%clk 0:00:42]} 34. a7 {[%clk 0:00:02]}  h4 {[%clk 0:00:43]} 35. a8=Q+ {[%clk 0:00:02]}  Kg7 {[%clk 0:00:43]} 36. g3 {[%clk 0:00:01]}  hxg3+ {[%clk 0:00:42]} 37. Qxg3 {[%clk 0:00:01]}  Ne4 {[%clk 0:00:42]} 38. Qg2 {[%clk 0:00:02]}  Qe3 {[%clk 0:00:42]} 39. Qaxe4 {[%clk 0:00:03]}  Qh6 {[%clk 0:00:42]} 40. Qef3 {[%clk 0:00:02]}  Kh7 {[%clk 0:00:43]} 41. Qgf2 {[%clk 0:00:03]}  Qf8 {[%clk 0:00:43]} 42. Qxf7+ {[%clk 0:00:03]} 1-0


[Site "https://www.chess.com"]

[Event "Titled Tuesday Blitz November 29 Late 2022"]
[White "Nakamura, Hikaru"]
[Black "Corrales Jimenez, Fidel"]
[WhiteFideId "2016192"]
[BlackFideId "3506690"]
[WhiteElo "2909"]
[BlackElo "2541"]
[Result "1-0"]
[Round "07"]
[TimeControl "180+1"]
[Date "2022.11.30"]
[WhiteClock "0:00:13"]
[BlackClock "0:00:06"]

1. Nf3 {[%clk 0:02:57]}  Nf6 {[%clk 0:02:58]} 2. g3 {[%clk 0:02:57]}  g6 {[%clk 0:02:58]} 3. d3 {[%clk 0:02:57]}  Bg7 {[%clk 0:02:59]} 4. e4 {[%clk 0:02:57]}  O-O {[%clk 0:02:58]} 5. Bg2 {[%clk 0:02:57]}  c5 {[%clk 0:02:58]} 6. O-O {[%clk 0:02:57]}  d6 {[%clk 0:02:58]} 7. Nbd2 {[%clk 0:02:56]}  Nc6 {[%clk 0:02:59]} 8. Re1 {[%clk 0:02:55]}  Rb8 {[%clk 0:02:59]} 9. Nf1 {[%clk 0:02:50]}  b5 {[%clk 0:02:59]} 10. Ne3 {[%clk 0:02:51]}  a5 {[%clk 0:02:59]} 11. h3 {[%clk 0:02:51]}  b4 {[%clk 0:02:59]} 12. Rb1 {[%clk 0:02:50]}  a4 {[%clk 0:02:59]} 13. b3 {[%clk 0:02:50]}  a3 {[%clk 0:02:59]} 14. Bd2 {[%clk 0:02:46]}  Na7 {[%clk 0:02:58]} 15. c4 {[%clk 0:02:38]}  bxc3 {[%clk 0:02:58]} 16. Bxc3 {[%clk 0:02:38]}  Nb5 {[%clk 0:02:59]} 17. Ba1 {[%clk 0:02:39]}  e5 {[%clk 0:02:59]} 18. Nd2 {[%clk 0:02:35]}  Ne8 {[%clk 0:02:58]} 19. Ndc4 {[%clk 0:02:34]}  Nec7 {[%clk 0:02:58]} 20. Qc1 {[%clk 0:02:25]}  Ra8 {[%clk 0:02:49]} 21. Nc2 {[%clk 0:02:25]}  Ne6 {[%clk 0:02:40]} 22. N4xa3 {[%clk 0:02:24]}  Nxa3 {[%clk 0:02:40]} 23. Nxa3 {[%clk 0:02:25]}  Nd4 {[%clk 0:02:36]} 24. Bxd4 {[%clk 0:02:22]}  exd4 {[%clk 0:02:36]} 25. Re2 {[%clk 0:02:12]}  Rb8 {[%clk 0:02:09]} 26. Nc4 {[%clk 0:02:06]}  Be6 {[%clk 0:02:09]} 27. f4 {[%clk 0:01:58]}  Rb4 {[%clk 0:02:08]} 28. Qc2 {[%clk 0:01:55]}  g5 {[%clk 0:02:06]} 29. Rf1 {[%clk 0:01:47]}  gxf4 {[%clk 0:02:05]} 30. gxf4 {[%clk 0:01:48]}  Kh8 {[%clk 0:02:06]} 31. Qd2 {[%clk 0:01:43]}  Bxc4 {[%clk 0:02:05]} 32. bxc4 {[%clk 0:01:38]}  Rg8 {[%clk 0:02:06]} 33. Kh2 {[%clk 0:01:38]}  Qh4 {[%clk 0:02:05]} 34. Qe1 {[%clk 0:01:35]}  Qh6 {[%clk 0:02:01]} 35. e5 {[%clk 0:01:20]}  dxe5 {[%clk 0:02:01]} 36. fxe5 {[%clk 0:01:21]}  Qg5 {[%clk 0:01:48]} 37. Bd5 {[%clk 0:01:21]}  Bxe5+ {[%clk 0:01:43]} 38. Rxe5 {[%clk 0:00:31]}  Rb2+ {[%clk 0:01:42]} 39. Kh1 {[%clk 0:00:31]}  Qh6 {[%clk 0:01:42]} 40. Rf3 {[%clk 0:00:31]}  Rc2 {[%clk 0:01:40]} 41. Bxf7 {[%clk 0:00:19]}  Qg7 {[%clk 0:01:17]} 42. Rg3 {[%clk 0:00:13]}  Qxg3 {[%clk 0:00:32]} 43. Qxg3 {[%clk 0:00:14]}  Rxg3 {[%clk 0:00:33]} 44. Re8+ {[%clk 0:00:14]}  Kg7 {[%clk 0:00:33]} 45. Rg8+ {[%clk 0:00:15]}  Kxf7 {[%clk 0:00:34]} 46. Rxg3 {[%clk 0:00:16]}  Kf6 {[%clk 0:00:35]} 47. Rg2 {[%clk 0:00:15]}  Rc3 {[%clk 0:00:35]} 48. Rd2 {[%clk 0:00:14]}  Ke5 {[%clk 0:00:33]} 49. Kg2 {[%clk 0:00:15]}  Kf4 {[%clk 0:00:33]} 50. Kf2 {[%clk 0:00:15]}  Rc1 {[%clk 0:00:34]} 51. Re2 {[%clk 0:00:15]}  Ra1 {[%clk 0:00:32]} 52. Re4+ {[%clk 0:00:15]}  Kf5 {[%clk 0:00:33]} 53. Rh4 {[%clk 0:00:14]}  Rxa2+ {[%clk 0:00:22]} 54. Ke1 {[%clk 0:00:14]}  Rh2 {[%clk 0:00:20]} 55. Rxh7 {[%clk 0:00:14]}  Kf4 {[%clk 0:00:21]} 56. Re7 {[%clk 0:00:13]}  Kf3 {[%clk 0:00:21]} 57. Re5 {[%clk 0:00:12]}  Kf4 {[%clk 0:00:21]} 58. Re4+ {[%clk 0:00:12]}  Kf3 {[%clk 0:00:22]} 59. h4 {[%clk 0:00:13]}  Kg3 {[%clk 0:00:16]} 60. Re5 {[%clk 0:00:13]}  Kf3 {[%clk 0:00:16]} 61. h5 {[%clk 0:00:13]}  Kf4 {[%clk 0:00:15]} 62. Rxc5 {[%clk 0:00:13]}  Ke3 {[%clk 0:00:16]} 63. Re5+ {[%clk 0:00:13]}  Kxd3 {[%clk 0:00:17]} 64. c5 {[%clk 0:00:14]}  Kc2 {[%clk 0:00:16]} 65. c6 {[%clk 0:00:14]}  Rh1+ {[%clk 0:00:16]} 66. Kf2 {[%clk 0:00:14]}  Kb3 {[%clk 0:00:07]} 67. Rc5 {[%clk 0:00:14]}  Kb4 {[%clk 0:00:08]} 68. c7 {[%clk 0:00:14]}  Rh2+ {[%clk 0:00:06]} 69. Kg3 {[%clk 0:00:13]} 1-0


[Site "https://www.chess.com"]

[Event "Titled Tuesday Blitz November 29 Late 2022"]
[White "Nasuta, Grzegorz"]
[Black "Domingo Nunez, Ruben"]
[WhiteFideId "1141686"]
[BlackFideId "22245570"]
[WhiteElo "2440"]
[BlackElo "2406"]
[Result "1-0"]
[Round "07"]
[TimeControl "180+1"]
[Date "2022.11.30"]
[WhiteClock "0:00:18"]
[BlackClock "0:00:16"]

1. e4 {[%clk 0:02:55]}  g6 {[%clk 0:03:00]} 2. d4 {[%clk 0:02:55]}  Bg7 {[%clk 0:03:01]} 3. Nf3 {[%clk 0:02:55]}  c6 {[%clk 0:03:02]} 4. Bd3 {[%clk 0:02:51]}  d5 {[%clk 0:03:02]} 5. e5 {[%clk 0:02:50]}  f6 {[%clk 0:03:03]} 6. Bf4 {[%clk 0:02:48]}  Bg4 {[%clk 0:03:03]} 7. Nbd2 {[%clk 0:02:41]}  fxe5 {[%clk 0:03:01]} 8. dxe5 {[%clk 0:02:37]}  Nd7 {[%clk 0:02:55]} 9. h3 {[%clk 0:02:34]}  Bxf3 {[%clk 0:02:55]} 10. Nxf3 {[%clk 0:02:35]}  Qc7 {[%clk 0:02:53]} 11. Qe2 {[%clk 0:02:24]}  Nh6 {[%clk 0:02:47]} 12. O-O {[%clk 0:01:32]}  O-O {[%clk 0:02:36]} 13. Bh2 {[%clk 0:01:32]}  e6 {[%clk 0:02:24]} 14. Rae1 {[%clk 0:01:21]}  Rae8 {[%clk 0:02:24]} 15. Ng5 {[%clk 0:01:22]}  Nf5 {[%clk 0:02:09]} 16. c3 {[%clk 0:01:08]}  Nh4 {[%clk 0:01:38]} 17. Nxh7 {[%clk 0:01:02]}  Nf3+ {[%clk 0:01:33]} 18. gxf3 {[%clk 0:01:02]}  Kxh7 {[%clk 0:01:34]} 19. f4 {[%clk 0:01:01]}  Rg8 {[%clk 0:01:28]} 20. Kh1 {[%clk 0:00:45]}  Nc5 {[%clk 0:01:22]} 21. Bb1 {[%clk 0:00:39]}  Qf7 {[%clk 0:01:22]} 22. Rg1 {[%clk 0:00:35]}  Bh6 {[%clk 0:01:18]} 23. Rg4 {[%clk 0:00:34]}  Rg7 {[%clk 0:00:55]} 24. Reg1 {[%clk 0:00:34]}  Reg8 {[%clk 0:00:56]} 25. Rh4 {[%clk 0:00:31]}  Ne4 {[%clk 0:00:36]} 26. f3 {[%clk 0:00:29]}  Nc5 {[%clk 0:00:35]} 27. Qf2 {[%clk 0:00:28]}  Qe7 {[%clk 0:00:33]} 28. Qg3 {[%clk 0:00:18]}  Nd7 {[%clk 0:00:29]} 29. Qg5 {[%clk 0:00:17]}  Qxg5 {[%clk 0:00:19]} 30. fxg5 {[%clk 0:00:18]}  Rf7 {[%clk 0:00:16]} 31. Rxh6+ {[%clk 0:00:17]}  Kg7 {[%clk 0:00:16]} 32. Rxg6+ {[%clk 0:00:18]} 1-0


[Site "https://www.chess.com"]

[Event "Titled Tuesday Blitz November 29 Late 2022"]
[White "Nugumanov, Bakhtiyar"]
[Black "Ferreira, Vitor Hugo Vieira"]
[WhiteFideId "13701797"]
[BlackFideId "2119765"]
[WhiteElo "2287"]
[BlackElo "2168"]
[Result "1-0"]
[Round "07"]
[TimeControl "180+1"]
[Date "2022.11.30"]
[WhiteClock "0:00:53"]
[BlackClock "0:01:38"]

1. d4 {[%clk 0:03:00]}  d5 {[%clk 0:02:58]} 2. c4 {[%clk 0:03:00]}  c6 {[%clk 0:02:58]} 3. Nc3 {[%clk 0:02:57]}  Nf6 {[%clk 0:02:59]} 4. cxd5 {[%clk 0:02:57]}  cxd5 {[%clk 0:02:58]} 5. Bf4 {[%clk 0:02:58]}  e6 {[%clk 0:02:58]} 6. e3 {[%clk 0:02:58]}  Bd6 {[%clk 0:02:58]} 7. Nf3 {[%clk 0:02:40]}  Bxf4 {[%clk 0:02:56]} 8. exf4 {[%clk 0:02:41]}  O-O {[%clk 0:02:56]} 9. Bd3 {[%clk 0:02:41]}  b6 {[%clk 0:02:55]} 10. Qe2 {[%clk 0:02:39]}  Bb7 {[%clk 0:02:50]} 11. O-O {[%clk 0:02:38]}  Nc6 {[%clk 0:02:45]} 12. Rad1 {[%clk 0:02:36]}  Nb4 {[%clk 0:02:45]} 13. Bb1 {[%clk 0:02:35]}  Ba6 {[%clk 0:02:44]} 14. Nb5 {[%clk 0:02:32]}  Ne4 {[%clk 0:02:29]} 15. Ne5 {[%clk 0:02:19]}  Nd6 {[%clk 0:02:23]} 16. a4 {[%clk 0:02:14]}  Qe8 {[%clk 0:02:19]} 17. Bxh7+ {[%clk 0:01:09]}  Kxh7 {[%clk 0:02:14]} 18. Qh5+ {[%clk 0:01:09]}  Kg8 {[%clk 0:02:14]} 19. Nxd6 {[%clk 0:01:08]}  Qe7 {[%clk 0:02:11]} 20. Ndxf7 {[%clk 0:01:02]}  Qxf7 {[%clk 0:01:47]} 21. Nxf7 {[%clk 0:01:02]}  Bxf1 {[%clk 0:01:47]} 22. Nh6+ {[%clk 0:00:57]}  gxh6 {[%clk 0:01:43]} 23. Qg6+ {[%clk 0:00:57]}  Kh8 {[%clk 0:01:43]} 24. Qxh6+ {[%clk 0:00:57]}  Kg8 {[%clk 0:01:43]} 25. Qxe6+ {[%clk 0:00:57]}  Rf7 {[%clk 0:01:42]} 26. Rxf1 {[%clk 0:00:54]}  Rc8 {[%clk 0:01:38]} 27. Qxc8+ {[%clk 0:00:53]} 1-0


[Site "https://www.chess.com"]

[Event "Titled Tuesday Blitz November 29 Late 2022"]
[White "Papasimakopoulos, Alexandros"]
[Black "Han, Yichen"]
[WhiteFideId "4244125"]
[BlackFideId "1054430"]
[WhiteElo "2365"]
[BlackElo "2323"]
[Result "1-0"]
[Round "07"]
[TimeControl "180+1"]
[Date "2022.11.30"]
[WhiteClock "0:00:21"]
[BlackClock "0:00:02"]

1. d4 {[%clk 0:02:58]}  d5 {[%clk 0:02:59]} 2. c4 {[%clk 0:02:58]}  e6 {[%clk 0:03:00]} 3. Nc3 {[%clk 0:02:58]}  c5 {[%clk 0:03:00]} 4. cxd5 {[%clk 0:02:57]}  cxd4 {[%clk 0:03:00]} 5. Qa4+ {[%clk 0:02:57]}  Bd7 {[%clk 0:02:58]} 6. Qxd4 {[%clk 0:02:57]}  exd5 {[%clk 0:02:55]} 7. Qxd5 {[%clk 0:02:58]}  Nf6 {[%clk 0:02:53]} 8. Qd1 {[%clk 0:02:59]}  Bc5 {[%clk 0:02:49]} 9. Nf3 {[%clk 0:02:59]}  Qe7 {[%clk 0:02:48]} 10. e3 {[%clk 0:03:00]}  O-O {[%clk 0:02:49]} 11. Be2 {[%clk 0:03:00]}  Rd8 {[%clk 0:02:43]} 12. Bd2 {[%clk 0:03:00]}  a6 {[%clk 0:02:42]} 13. O-O {[%clk 0:03:00]}  b5 {[%clk 0:02:42]} 14. a3 {[%clk 0:03:01]}  Nc6 {[%clk 0:02:42]} 15. b4 {[%clk 0:03:00]}  Bd6 {[%clk 0:02:42]} 16. Qb3 {[%clk 0:02:56]}  Ne5 {[%clk 0:02:40]} 17. Rfd1 {[%clk 0:02:45]}  Bc6 {[%clk 0:02:39]} 18. Nd4 {[%clk 0:02:41]}  Bb7 {[%clk 0:02:27]} 19. Nf5 {[%clk 0:02:40]}  Qc7 {[%clk 0:02:25]} 20. Nxd6 {[%clk 0:02:39]}  Rxd6 {[%clk 0:02:26]} 21. Rac1 {[%clk 0:02:31]}  Qc6 {[%clk 0:02:15]} 22. f3 {[%clk 0:02:31]}  Qd7 {[%clk 0:02:15]} 23. Be1 {[%clk 0:02:29]}  Rxd1 {[%clk 0:02:02]} 24. Rxd1 {[%clk 0:02:29]}  Qe7 {[%clk 0:02:03]} 25. e4 {[%clk 0:02:26]}  Rc8 {[%clk 0:02:01]} 26. Bf2 {[%clk 0:02:25]}  Ng6 {[%clk 0:02:00]} 27. Bf1 {[%clk 0:02:23]}  Qe5 {[%clk 0:01:56]} 28. Bg3 {[%clk 0:02:18]}  Qxc3 {[%clk 0:01:32]} 29. Rd8+ {[%clk 0:02:15]}  Nf8 {[%clk 0:01:32]} 30. Qxc3 {[%clk 0:02:15]}  Rxc3 {[%clk 0:01:33]} 31. Rb8 {[%clk 0:02:09]}  Bc8 {[%clk 0:01:23]} 32. Bd6 {[%clk 0:01:59]}  N8d7 {[%clk 0:01:15]} 33. Ra8 {[%clk 0:01:58]}  g6 {[%clk 0:01:06]} 34. a4 {[%clk 0:01:57]}  Nb6 {[%clk 0:01:04]} 35. Be5 {[%clk 0:01:42]}  Rc6 {[%clk 0:00:39]} 36. axb5 {[%clk 0:01:40]}  axb5 {[%clk 0:00:39]} 37. Ra1 {[%clk 0:01:29]}  Nfd7 {[%clk 0:00:36]} 38. Bd4 {[%clk 0:01:27]}  Nc4 {[%clk 0:00:35]} 39. h4 {[%clk 0:01:19]}  f6 {[%clk 0:00:35]} 40. h5 {[%clk 0:01:17]}  Kf7 {[%clk 0:00:35]} 41. Ra7 {[%clk 0:01:13]}  gxh5 {[%clk 0:00:32]} 42. Kf2 {[%clk 0:01:08]}  Kg6 {[%clk 0:00:33]} 43. Bd3 {[%clk 0:01:01]}  Nde5 {[%clk 0:00:33]} 44. Be2 {[%clk 0:00:57]}  Nd6 {[%clk 0:00:21]} 45. Bc5 {[%clk 0:00:55]}  Ndc4 {[%clk 0:00:15]} 46. Bf8 {[%clk 0:00:51]}  Nf7 {[%clk 0:00:12]} 47. f4 {[%clk 0:00:51]}  f5 {[%clk 0:00:12]} 48. e5 {[%clk 0:00:46]}  Be6 {[%clk 0:00:12]} 49. Ra1 {[%clk 0:00:41]}  Rc8 {[%clk 0:00:12]} 50. Bc5 {[%clk 0:00:40]}  Bd5 {[%clk 0:00:06]} 51. Rh1 {[%clk 0:00:40]}  Nh6 {[%clk 0:00:06]} 52. Bxh5+ {[%clk 0:00:40]}  Kg7 {[%clk 0:00:06]} 53. Be7 {[%clk 0:00:37]}  Ng4+ {[%clk 0:00:05]} 54. Kg3 {[%clk 0:00:38]}  Nge3 {[%clk 0:00:05]} 55. Bf6+ {[%clk 0:00:38]}  Kg8 {[%clk 0:00:05]} 56. Ra1 {[%clk 0:00:35]}  Rc7 {[%clk 0:00:04]} 57. e6 {[%clk 0:00:30]}  Nb6 {[%clk 0:00:04]} 58. e7 {[%clk 0:00:25]}  Bf7 {[%clk 0:00:04]} 59. e8=Q+ {[%clk 0:00:23]}  Bxe8 {[%clk 0:00:05]} 60. Bxe8 {[%clk 0:00:24]}  Ned5 {[%clk 0:00:05]} 61. Be5 {[%clk 0:00:22]}  Rc2 {[%clk 0:00:04]} 62. Bxb5 {[%clk 0:00:22]}  Kf7 {[%clk 0:00:03]} 63. Bd3 {[%clk 0:00:20]}  Rc8 {[%clk 0:00:02]} 64. Bxf5 {[%clk 0:00:20]}  Nxb4 {[%clk 0:00:02]} 65. Ra7+ {[%clk 0:00:21]}  Kg8 {[%clk 0:00:02]} 66. Bxc8 {[%clk 0:00:21]} 1-0


[Site "https://www.chess.com"]

[Event "Titled Tuesday Blitz November 29 Late 2022"]
[White "Perez Torres, Nabi Isaias"]
[Black "Perez Rodriguez, Jennifer"]
[WhiteFideId "5120373"]
[BlackFideId "3507831"]
[WhiteElo "1915"]
[BlackElo "2170"]
[Result "1-0"]
[Round "07"]
[TimeControl "180+1"]
[Date "2022.11.30"]
[WhiteClock "0:01:43"]
[BlackClock "0:01:22"]

1. d4 {[%clk 0:03:00]}  d5 {[%clk 0:02:59]} 2. c4 {[%clk 0:03:00]}  c6 {[%clk 0:02:59]} 3. Nc3 {[%clk 0:03:01]}  Nf6 {[%clk 0:02:59]} 4. e3 {[%clk 0:03:01]}  e6 {[%clk 0:02:56]} 5. Nf3 {[%clk 0:03:01]}  Nbd7 {[%clk 0:02:56]} 6. Bd3 {[%clk 0:03:02]}  dxc4 {[%clk 0:02:57]} 7. Bxc4 {[%clk 0:03:03]}  b5 {[%clk 0:02:57]} 8. Bd3 {[%clk 0:03:03]}  Bd6 {[%clk 0:02:58]} 9. e4 {[%clk 0:03:03]}  e5 {[%clk 0:02:57]} 10. d5 {[%clk 0:02:57]}  cxd5 {[%clk 0:02:51]} 11. exd5 {[%clk 0:02:47]}  a6 {[%clk 0:02:42]} 12. O-O {[%clk 0:02:43]}  O-O {[%clk 0:02:42]} 13. a3 {[%clk 0:02:35]}  h6 {[%clk 0:02:39]} 14. Qe2 {[%clk 0:02:31]}  Nc5 {[%clk 0:02:37]} 15. Bc2 {[%clk 0:02:29]}  Re8 {[%clk 0:02:36]} 16. b4 {[%clk 0:02:21]}  Ncd7 {[%clk 0:02:34]} 17. Rd1 {[%clk 0:02:10]}  Bb7 {[%clk 0:02:27]} 18. Be3 {[%clk 0:02:09]}  Rc8 {[%clk 0:02:26]} 19. Qd2 {[%clk 0:02:01]}  Qc7 {[%clk 0:02:00]} 20. Ne4 {[%clk 0:02:00]}  Qxc2 {[%clk 0:01:59]} 21. Nxd6 {[%clk 0:01:58]}  Qxd2 {[%clk 0:01:50]} 22. Rxd2 {[%clk 0:01:56]}  Bxd5 {[%clk 0:01:49]} 23. Nxe8 {[%clk 0:01:53]}  Rxe8 {[%clk 0:01:48]} 24. Rad1 {[%clk 0:01:53]}  Be6 {[%clk 0:01:38]} 25. Rd6 {[%clk 0:01:53]}  Nb8 {[%clk 0:01:30]} 26. Rd8 {[%clk 0:01:49]}  e4 {[%clk 0:01:22]} 27. Rxe8+ {[%clk 0:01:43]}  Nxe8 {[%clk 0:01:22]} 28. Rd8 {[%clk 0:01:43]} 1-0


[Site "https://www.chess.com"]